[Event "RUS-ch Men Rapid 2019"]
[Site "Sochi"]
[Date "2019.10.16"]
[Round "9.3"]
[White "Rozum, Ivan"]
[Black "Musalov, Ruslan"]
[Result "1/2-1/2"]
[ECO "A35"]
[WhiteElo "2599"]
[BlackElo "2348"]
[Annotator "ChessBase"]
[PlyCount "84"]
[EventDate "2019.10.15"]
[EventType "swiss"]
[EventCountry "RUS"]
[SourceTitle "playchess.com"]
[Source "ChessBase"]
[SourceQuality "1"]
[TimeControl "900+10"]

1. c4 {[%emt 0:00:00]} c5 {[%emt 0:00:00]} 2. Nf3 {[%emt 0:00:04]} Nf6 {[%emt 0:00:00]} 3. Nc3 {[%emt 0:00:07]} Nc6 {[%emt 0:00:00]} 4. e3 {[%emt 0:00:03]} e6 {[%emt 0:01:13]} 5. d4 {[%emt 0:00:04]} d5 {[%emt 0:00:04]} 6. cxd5 {[%emt 0:00:03]} exd5 {[%emt 0:00:16]} 7. Bb5 {[%emt 0:00:02]} Be7 {[%emt 0:01:14]} 8. O-O {[%emt 0:00:06]} O-O {[%emt 0:00:06]} 9. dxc5 {[%emt 0:00:09]} Bxc5 {[%emt 0:00:03]} 10. b3 {[%emt 0:00:02]} a6 {[%emt 0:02:11]} 11. Bxc6 {[%emt 0:00:05]} bxc6 {[%emt 0:00:01]} 12. Bb2 {[%emt 0:00:01]} Bg4 {[%emt 0:00:28]} 13. Ne2 {[%emt 0:00:05]} Bxf3 {[%emt 0:05:12]} 14. gxf3 {[%emt 0:00:02]} Nd7 {[%emt 0:00:10]} 15. Ng3 {[%emt 0:00:10]} Be7 {[%emt 0:01:23]} 16. Rc1 {[%emt 0:00:08]} Rc8 {[%emt 0:00:33]} 17. Qe2 {[%emt 0:01:55]} a5 {[%emt 0:00:02]} 18. Nf5 {[%emt 0:01:08]} Bf6 {[%emt 0:00:55]} 19. Ba3 {[%emt 0:00:02]} c5 {[%emt 0:01:09]} 20. Rfd1 {[%emt 0:00:13]} d4 {[%emt 0:00:02]} 21. exd4 {[%emt 0:00:14]} Re8 {[%emt 0:00:54]} 22. Qd3 {[%emt 0:04:11]} Bxd4 {[%emt 0:01:01]} 23. Nxd4 {[%emt 0:00:21]} Ne5 {[%emt 0:01:08]} 24. Qf5 {[%emt 0:01:10]} cxd4 {[%emt 0:00:02]} 25. Rxc8 {[%emt 0:01:19]} Qxc8 {[%emt 0:00:02]} 26. Qxc8 {[%emt 0:00:01]} Rxc8 {[%emt 0:00:02]} 27. Kg2 {[%emt 0:00:17]} Rd8 {[%emt 0:00:38]} 28. Bc5 {[%emt 0:00:37]} Nc6 {[%emt 0:00:16]} 29. Rc1 {[%emt 0:00:47]} h6 {[%emt 0:00:08]} 30. Bb6 {[%emt 0:00:16]} Rd6 {[%emt 0:00:03]} 31. Bc7 {[%emt 0:00:03]} Rg6+ {[%emt 0:00:13]} 32. Kf1 {[%emt 0:00:01]} Kf8 {[%emt 0:00:06]} 33. Ke2 {[%emt 0:00:09]} Ke8 {[%emt 0:00:07]} 34. Rc5 {[%emt 0:00:16]} Re6+ {[%emt 0:00:27]} 35. Kd2 {[%emt 0:00:06]} Kd7 {[%emt 0:00:06]} 36. Bxa5 {[%emt 0:00:09]} Kd6 {[%emt 0:00:02]} 37. b4 {[%emt 0:00:58]} Rf6 {[%emt 0:00:06]} 38. Ke2 {[%emt 0:01:06]} d3+ {[%emt 0:00:06]} 39. Ke3 {[%emt 0:00:29]} d2 {[%emt 0:00:04]} 40. Kxd2 {[%emt 0:00:03]} Rxf3 {[%emt 0:00:02]} 41. Ke2 {[%emt 0:01:29]} Ra3 {[%emt 0:00:05]} 42. Kf1 {[%emt 0:00:07]} Rxa2 {[%emt 0:00:09]} 1/2-1/2

[Event "RUS-ch Men Rapid 2019"]
[Site "Sochi"]
[Date "2019.10.16"]
[Round "9.5"]
[White "Antipov, Mikhail Al."]
[Black "Lugovskoy, Maxim"]
[Result "1-0"]
[ECO "C05"]
[WhiteElo "2567"]
[BlackElo "2436"]
[Annotator "ChessBase"]
[PlyCount "73"]
[EventDate "2019.10.15"]
[EventType "swiss"]
[EventCountry "RUS"]
[SourceTitle "playchess.com"]
[Source "ChessBase"]
[SourceQuality "1"]
[TimeControl "900+10"]

1. e4 {[%emt 0:00:00]} e6 {[%emt 0:00:00]} 2. d4 {[%emt 0:00:00]} d5 {[%emt 0:00:00]} 3. Nd2 {[%emt 0:00:00]} Nf6 {[%emt 0:00:00]} 4. e5 {[%emt 0:00:00]} Nfd7 {[%emt 0:00:00]} 5. Bd3 {[%emt 0:00:24]} c5 {[%emt 0:00:00]} 6. c3 {[%emt 0:00:01]} Nc6 {[%emt 0:00:01]} 7. Ngf3 {[%emt 0:00:01]} cxd4 {[%emt 0:00:04]} 8. cxd4 {[%emt 0:00:01]} Qb6 {[%emt 0:00:00]} 9. O-O {[%emt 0:00:02]} Nxd4 {[%emt 0:00:02]} 10. Nxd4 {[%emt 0:00:01]} Qxd4 {[%emt 0:00:01]} 11. Nf3 {[%emt 0:00:01]} Qb6 {[%emt 0:00:01]} 12. Qa4 {[%emt 0:00:01]} a6 {[%emt 0:00:03]} 13. a3 {[%emt 0:01:09]} g6 {[%emt 0:01:58]} 14. Be3 {[%emt 0:01:20]} Qd8 {[%emt 0:01:03]} 15. Rac1 {[%emt 0:01:10]} Bg7 {[%emt 0:00:49]} 16. Bc5 {[%emt 0:04:33]} Bf8 {[%emt 0:00:29]} 17. Bxf8 {[%emt 0:00:24]} Kxf8 {[%emt 0:00:09]} 18. Rc3 {[%emt 0:00:02]} Nb8 {[%emt 0:01:38]} 19. Qf4 {[%emt 0:02:18]} Nc6 {[%emt 0:01:20]} 20. Qh6+ {[%emt 0:00:17]} Kg8 {[%emt 0:00:11]} 21. h4 {[%emt 0:00:13]} Qf8 {[%emt 0:00:08]} 22. Qf4 {[%emt 0:00:02]} h6 {[%emt 0:00:42]} 23. h5 {[%emt 0:01:03]} g5 {[%emt 0:00:05]} 24. Qg3 {[%emt 0:00:24]} f5 {[%emt 0:01:39]} 25. exf6 {[%emt 0:00:39]} Qxf6 {[%emt 0:00:01]} 26. Nh4 {[%emt 0:00:31]} e5 {[%emt 0:01:05]} 27. Ng6 {[%emt 0:00:05]} Rh7 {[%emt 0:00:01]} 28. f4 {[%emt 0:00:58]} exf4 {[%emt 0:01:01]} 29. Nxf4 {[%emt 0:00:01]} Qd4+ {[%emt 0:00:10]} 30. Kh2 {[%emt 0:00:07]} Rf7 {[%emt 0:00:02]} 31. Nxd5 {[%emt 0:00:38]} Be6 {[%emt 0:02:46]} 32. Nc7 {[%emt 0:00:52]} Rxf1 {[%emt 0:04:19]} 33. Bxf1 {[%emt 0:00:01]} Ne5 {[%emt 0:00:18]} 34. Nxe6 {[%emt 0:01:07]} Ng4+ {[%emt 0:00:04]} 35. Kh1 {[%emt 0:00:01]} Rf8 {[%emt 0:00:17]} 36. Rc8 {[%emt 0:00:20]} Nf2+ {[%emt 0:00:08]} 37. Qxf2 {[%emt 0:00:01]} 1-0

[Event "RUS-ch Men Rapid 2019"]
[Site "Sochi"]
[Date "2019.10.16"]
[Round "9.6"]
[White "Khegay, Dmitriy"]
[Black "Moiseenko, Vadim"]
[Result "0-1"]
[ECO "C55"]
[WhiteElo "2509"]
[BlackElo "2532"]
[Annotator "ChessBase"]
[PlyCount "62"]
[EventDate "2019.10.15"]
[EventType "swiss"]
[EventCountry "RUS"]
[SourceTitle "playchess.com"]
[Source "ChessBase"]
[SourceQuality "1"]
[TimeControl "900+10"]

1. e4 {[%emt 0:00:00]} e5 {[%emt 0:00:00]} 2. Nf3 {[%emt 0:00:00]} Nc6 {[%emt 0:00:00]} 3. Bc4 {[%emt 0:00:00]} Nf6 {[%emt 0:00:00]} 4. d3 {[%emt 0:00:00]} Be7 {[%emt 0:00:00]} 5. O-O {[%emt 0:00:02]} O-O {[%emt 0:00:00]} 6. a4 {[%emt 0:00:01]} d6 {[%emt 0:00:00]} 7. Re1 {[%emt 0:00:09]} Kh8 {[%emt 0:00:05]} 8. Nc3 {[%emt 0:00:05]} Ng8 {[%emt 0:00:06]} 9. h3 {[%emt 0:00:25]} f5 {[%emt 0:00:04]} 10. Nd5 {[%emt 0:00:01]} Nf6 {[%emt 0:00:20]} 11. Ng5 {[%emt 0:00:28]} Ng8 {[%emt 0:00:02]} 12. Nf3 {[%emt 0:06:15]} Nf6 {[%emt 0:00:01]} 13. c3 {[%emt 0:00:14]} Nxd5 {[%emt 0:01:17]} 14. Bxd5 {[%emt 0:00:01]} Bf6 {[%emt 0:00:01]} 15. Ba2 {[%emt 0:02:16]} fxe4 {[%emt 0:00:09]} 16. dxe4 {[%emt 0:00:01]} Qe8 {[%emt 0:00:23]} 17. Kh1 {[%emt 0:03:57]} a5 {[%emt 0:01:07]} 18. Be3 {[%emt 0:00:13]} Ne7 {[%emt 0:00:08]} 19. Nh2 {[%emt 0:01:00]} Qg6 {[%emt 0:00:39]} 20. Ng4 {[%emt 0:01:51]} Bh4 {[%emt 0:00:02]} 21. g3 {[%emt 0:00:27]} Bg5 {[%emt 0:00:15]} 22. Bxg5 {[%emt 0:00:03]} Qxg5 {[%emt 0:00:01]} 23. Kg2 {[%emt 0:00:18]} Ng6 {[%emt 0:00:15]} 24. Qc1 {[%emt 0:00:08]} Rf4 {[%emt 0:02:11]} 25. gxf4 {[%emt 0:00:44]} Nxf4+ {[%emt 0:00:03]} 26. Kf1 {[%emt 0:00:01]} Bxg4 {[%emt 0:00:51]} 27. hxg4 {[%emt 0:00:01]} Qh4 {[%emt 0:00:19]} 28. f3 {[%emt 0:00:13]} Rf8 {[%emt 0:01:18]} 29. Re3 {[%emt 0:00:01]} Rf6 {[%emt 0:01:16]} 30. Qd2 {[%emt 0:00:46]} Qh1+ {[%emt 0:00:09]} 31. Kf2 {[%emt 0:00:00]} Qg2+ {[%emt 0:00:03]} 0-1

[Event "RUS-ch Men Rapid 2019"]
[Site "Sochi"]
[Date "2019.10.16"]
[Round "9.7"]
[White "Glek, Igor"]
[Black "Lysyj, Igor"]
[Result "1/2-1/2"]
[ECO "C47"]
[WhiteElo "2467"]
[BlackElo "2596"]
[Annotator "ChessBase"]
[PlyCount "82"]
[EventDate "2019.10.15"]
[EventType "swiss"]
[EventCountry "RUS"]
[SourceTitle "playchess.com"]
[Source "ChessBase"]
[SourceQuality "1"]
[TimeControl "900+10"]

1. e4 {[%emt 0:00:46]} e5 {[%emt 0:00:00]} 2. Nf3 {[%emt 0:00:04]} Nc6 {[%emt 0:00:00]} 3. Nc3 {[%emt 0:00:11]} Nf6 {[%emt 0:00:00]} 4. g3 {[%emt 0:00:01]} Bc5 {[%emt 0:00:00]} 5. Bg2 {[%emt 0:00:01]} d6 {[%emt 0:00:01]} 6. d3 {[%emt 0:00:01]} a5 {[%emt 0:00:03]} 7. O-O {[%emt 0:00:04]} Be6 {[%emt 0:00:06]} 8. Ne2 {[%emt 0:01:35]} Bb6 {[%emt 0:00:41]} 9. d4 {[%emt 0:00:08]} Bg4 {[%emt 0:00:58]} 10. d5 {[%emt 0:01:30]} Ne7 {[%emt 0:00:10]} 11. h3 {[%emt 0:00:36]} Bd7 {[%emt 0:00:22]} 12. Nd2 {[%emt 0:01:00]} Qc8 {[%emt 0:02:47]} 13. Kh2 {[%emt 0:00:05]} h5 {[%emt 0:00:01]} 14. Nc4 {[%emt 0:00:26]} h4 {[%emt 0:00:19]} 15. g4 {[%emt 0:01:53]} Ba7 {[%emt 0:01:36]} 16. f4 {[%emt 0:03:38]} b5 {[%emt 0:02:39]} 17. Ne3 {[%emt 0:02:52]} Bxe3 {[%emt 0:00:07]} 18. Bxe3 {[%emt 0:00:02]} Bxg4 {[%emt 0:00:30]} 19. fxe5 {[%emt 0:00:09]} dxe5 {[%emt 0:00:02]} 20. Bg5 {[%emt 0:01:33]} Bh5 {[%emt 0:02:34]} 21. Bxf6 {[%emt 0:00:25]} gxf6 {[%emt 0:00:01]} 22. Rxf6 {[%emt 0:00:03]} Ra6 {[%emt 0:00:04]} 23. Rxa6 {[%emt 0:00:22]} Qxa6 {[%emt 0:00:01]} 24. Qd3 {[%emt 0:00:05]} Qb6 {[%emt 0:01:08]} 25. Rf1 {[%emt 0:00:11]} Bg6 {[%emt 0:01:02]} 26. Nc3 {[%emt 0:00:15]} b4 {[%emt 0:00:22]} 27. Na4 {[%emt 0:00:27]} Qd6 {[%emt 0:00:42]} 28. Qb5+ {[%emt 0:00:06]} Kf8 {[%emt 0:00:01]} 29. Qxa5 {[%emt 0:00:26]} Kg7 {[%emt 0:00:07]} 30. Qc5 {[%emt 0:00:24]} f5 {[%emt 0:00:31]} 31. Qxd6 {[%emt 0:00:20]} cxd6 {[%emt 0:00:01]} 32. Nb6 {[%emt 0:00:10]} fxe4 {[%emt 0:00:22]} 33. Re1 {[%emt 0:00:09]} e3 {[%emt 0:01:19]} 34. Nc4 {[%emt 0:00:12]} Rc8 {[%emt 0:00:37]} 35. b3 {[%emt 0:00:16]} Ra8 {[%emt 0:00:49]} 36. Nxd6 {[%emt 0:00:17]} Rxa2 {[%emt 0:00:03]} 37. Nc4 {[%emt 0:00:00]} Rxc2 {[%emt 0:00:31]} 38. d6 {[%emt 0:00:08]} Nc6 {[%emt 0:00:01]} 39. Nxe3 {[%emt 0:00:02]} Ra2 {[%emt 0:00:21]} 40. Kg1 {[%emt 0:00:07]} e4 {[%emt 0:00:09]} 41. Rc1 {[%emt 0:00:09]} Ne5 {[%emt 0:00:07]} 1/2-1/2

[Event "RUS-ch Men Rapid 2019"]
[Site "Sochi"]
[Date "2019.10.16"]
[Round "9.8"]
[White "Samusenko, Maksim"]
[Black "Sakaev, Konstantin"]
[Result "1/2-1/2"]
[ECO "B93"]
[WhiteElo "2445"]
[BlackElo "2595"]
[Annotator "ChessBase"]
[PlyCount "38"]
[EventDate "2019.10.15"]
[EventType "swiss"]
[EventCountry "RUS"]
[SourceTitle "playchess.com"]
[Source "ChessBase"]
[SourceQuality "1"]
[TimeControl "900+10"]

1. e4 {[%emt 0:00:00]} c5 {[%emt 0:00:00]} 2. Nf3 {[%emt 0:00:00]} d6 {[%emt 0:00:00]} 3. d4 {[%emt 0:00:00]} cxd4 {[%emt 0:00:00]} 4. Nxd4 {[%emt 0:00:00]} Nf6 {[%emt 0:00:00]} 5. Nc3 {[%emt 0:00:00]} a6 {[%emt 0:00:00]} 6. f4 {[%emt 0:00:02]} Qc7 {[%emt 0:00:53]} 7. Bd3 {[%emt 0:00:23]} g6 {[%emt 0:00:07]} 8. O-O {[%emt 0:00:27]} Bg7 {[%emt 0:00:02]} 9. Kh1 {[%emt 0:00:10]} Nbd7 {[%emt 0:00:41]} 10. Nf3 {[%emt 0:00:09]} O-O {[%emt 0:01:42]} 11. Qe1 {[%emt 0:00:33]} b5 {[%emt 0:01:20]} 12. e5 {[%emt 0:03:02]} dxe5 {[%emt 0:00:13]} 13. fxe5 {[%emt 0:00:05]} Ng4 {[%emt 0:00:02]} 14. Nd5 {[%emt 0:03:40]} Qc5 {[%emt 0:00:32]} 15. Qe4 {[%emt 0:02:30]} Ndxe5 {[%emt 0:00:32]} 16. Nxe5 {[%emt 0:02:51]} Nxe5 {[%emt 0:01:21]} 17. Bg5 {[%emt 0:01:33]} Be6 {[%emt 0:00:11]} 18. Nxe7+ {[%emt 0:01:08]} Kh8 {[%emt 0:00:01]} 19. Qh4 {[%emt 0:00:10]} Bc4 {[%emt 0:07:19]} 1/2-1/2

[Event "RUS-ch Men Rapid 2019"]
[Site "Sochi"]
[Date "2019.10.16"]
[Round "9.9"]
[White "Tekeyev, Zaur"]
[Black "Pridorozhni, Aleksei"]
[Result "0-1"]
[ECO "B40"]
[WhiteElo "2384"]
[BlackElo "2599"]
[Annotator "ChessBase"]
[PlyCount "127"]
[EventDate "2019.10.15"]
[EventType "swiss"]
[EventCountry "RUS"]
[SourceTitle "playchess.com"]
[Source "ChessBase"]
[SourceQuality "1"]
[TimeControl "900+10"]

1. e4 {[%emt 0:00:18]} c5 {[%emt 0:00:00]} 2. Nf3 {[%emt 0:00:04]} e6 {[%emt 0:00:00]} 3. d4 {[%emt 0:00:08]} cxd4 {[%emt 0:00:00]} 4. Nxd4 {[%emt 0:00:02]} Nf6 {[%emt 0:00:00]} 5. Nc3 {[%emt 0:00:02]} Nc6 {[%emt 0:00:00]} 6. Ndb5 {[%emt 0:00:14]} Bc5 {[%emt 0:00:01]} 7. Bf4 {[%emt 0:00:02]} O-O {[%emt 0:00:03]} 8. Bc7 {[%emt 0:00:02]} Qe7 {[%emt 0:00:01]} 9. Bd6 {[%emt 0:00:01]} Bxd6 {[%emt 0:00:02]} 10. Qxd6 {[%emt 0:00:02]} Qd8 {[%emt 0:00:01]} 11. O-O-O {[%emt 0:01:59]} a6 {[%emt 0:00:27]} 12. Nd4 {[%emt 0:04:08]} Qb6 {[%emt 0:00:06]} 13. f3 {[%emt 0:03:03]} Ne8 {[%emt 0:01:25]} 14. Na4 {[%emt 0:00:05]} Qa5 {[%emt 0:00:03]} 15. Nxc6 {[%emt 0:00:11]} bxc6 {[%emt 0:00:03]} 16. Qd4 {[%emt 0:01:16]} d5 {[%emt 0:00:24]} 17. b3 {[%emt 0:00:58]} Nf6 {[%emt 0:00:08]} 18. Qc5 {[%emt 0:00:30]} Qc7 {[%emt 0:00:46]} 19. Bd3 {[%emt 0:00:49]} Nd7 {[%emt 0:00:13]} 20. Qe7 {[%emt 0:00:55]} Bb7 {[%emt 0:01:12]} 21. Kb1 {[%emt 0:00:58]} Rfe8 {[%emt 0:00:51]} 22. Qh4 {[%emt 0:00:01]} Nf8 {[%emt 0:00:03]} 23. Nc5 {[%emt 0:00:19]} Qb6 {[%emt 0:00:09]} 24. Na4 {[%emt 0:00:28]} Qa7 {[%emt 0:00:04]} 25. Rhe1 {[%emt 0:00:21]} a5 {[%emt 0:00:13]} 26. f4 {[%emt 0:00:33]} c5 {[%emt 0:01:30]} 27. exd5 {[%emt 0:00:34]} Bxd5 {[%emt 0:00:04]} 28. Bb5 {[%emt 0:00:52]} Rec8 {[%emt 0:00:52]} 29. Qf2 {[%emt 0:00:35]} Qb7 {[%emt 0:00:28]} 30. c4 {[%emt 0:00:08]} Bxg2 {[%emt 0:00:04]} 31. Nxc5 {[%emt 0:00:20]} Qa7 {[%emt 0:00:15]} 32. Nd3 {[%emt 0:00:07]} Qxf2 {[%emt 0:00:12]} 33. Nxf2 {[%emt 0:00:01]} Ng6 {[%emt 0:00:02]} 34. f5 {[%emt 0:00:06]} exf5 {[%emt 0:00:09]} 35. Bd7 {[%emt 0:00:01]} Rd8 {[%emt 0:01:28]} 36. Bxf5 {[%emt 0:00:01]} Nf4 {[%emt 0:00:02]} 37. Bd7 {[%emt 0:00:25]} Nd5 {[%emt 0:00:39]} 38. cxd5 {[%emt 0:00:21]} Rxd7 {[%emt 0:00:01]} 39. d6 {[%emt 0:00:12]} Rad8 {[%emt 0:00:41]} 40. Re5 {[%emt 0:00:13]} f6 {[%emt 0:00:06]} 41. Rxa5 {[%emt 0:00:07]} Rxd6 {[%emt 0:00:02]} 42. Rxd6 {[%emt 0:00:05]} Rxd6 {[%emt 0:00:01]} 43. Kc2 {[%emt 0:00:08]} g5 {[%emt 0:00:11]} 44. a4 {[%emt 0:00:15]} h5 {[%emt 0:00:12]} 45. Kc3 {[%emt 0:00:13]} Kf7 {[%emt 0:00:04]} 46. b4 {[%emt 0:00:08]} Kg6 {[%emt 0:00:07]} 47. b5 {[%emt 0:00:17]} g4 {[%emt 0:00:03]} 48. Nd3 {[%emt 0:00:04]} Be4 {[%emt 0:00:25]} 49. Nc5 {[%emt 0:00:08]} Bf3 {[%emt 0:00:13]} 50. Ra7 {[%emt 0:00:17]} h4 {[%emt 0:00:20]} 51. Nd3 {[%emt 0:00:11]} h3 {[%emt 0:00:54]} 52. Re7 {[%emt 0:00:06]} g3 {[%emt 0:00:40]} 53. Nf4+ {[%emt 0:00:14]} Kf5 {[%emt 0:00:04]} 54. Nxh3 {[%emt 0:00:06]} gxh2 {[%emt 0:00:03]} 55. Nf2 {[%emt 0:00:07]} Kf4 {[%emt 0:00:05]} 56. Re1 {[%emt 0:00:14]} Kg3 {[%emt 0:00:08]} 57. Nh1+ {[%emt 0:00:04]} Kg2 {[%emt 0:00:53]} 58. a5 {[%emt 0:00:07]} f5 {[%emt 0:00:05]} 59. b6 {[%emt 0:00:20]} Bb7 {[%emt 0:00:05]} 60. Kc4 {[%emt 0:00:09]} f4 {[%emt 0:00:15]} 61. Re7 {[%emt 0:00:11]} Ba6+ {[%emt 0:00:19]} 62. Kc5 {[%emt 0:00:01]} Rh6 {[%emt 0:00:01]} 63. Re1 {[%emt 0:00:21]} f3 {[%emt 0:00:05]} 64. Kd4 0-1

[Event "RUS-ch Men Rapid 2019"]
[Site "Sochi"]
[Date "2019.10.16"]
[Round "9.11"]
[White "Zakaryan, David"]
[Black "Drygalov, Andrey"]
[Result "1/2-1/2"]
[ECO "B23"]
[WhiteElo "2338"]
[BlackElo "2484"]
[Annotator "ChessBase"]
[PlyCount "78"]
[EventDate "2019.10.15"]
[EventType "swiss"]
[EventCountry "RUS"]
[SourceTitle "playchess.com"]
[Source "ChessBase"]
[SourceQuality "1"]
[TimeControl "900+10"]

1. e4 {[%emt 0:00:00]} c5 {[%emt 0:00:00]} 2. Nc3 {[%emt 0:00:05]} d6 {[%emt 0:00:00]} 3. d4 cxd4 {[%emt 0:00:00]} 4. Qxd4 {[%emt 0:00:05]} Nc6 {[%emt 0:00:00]} 5. Bb5 {[%emt 0:00:02]} Bd7 {[%emt 0:00:10]} 6. Bxc6 {[%emt 0:00:02]} Bxc6 {[%emt 0:00:01]} 7. Nf3 {[%emt 0:00:05]} Nf6 {[%emt 0:00:06]} 8. Bg5 {[%emt 0:00:02]} e6 {[%emt 0:00:01]} 9. O-O-O {[%emt 0:00:02]} Be7 {[%emt 0:00:01]} 10. Rhe1 {[%emt 0:00:03]} Qa5 {[%emt 0:00:25]} 11. Qd2 {[%emt 0:00:02]} h6 {[%emt 0:01:26]} 12. Bh4 {[%emt 0:00:52]} Rd8 {[%emt 0:00:49]} 13. Kb1 {[%emt 0:00:12]} e5 {[%emt 0:01:32]} 14. Bxf6 {[%emt 0:00:11]} Bxf6 {[%emt 0:00:01]} 15. Nd5 {[%emt 0:00:01]} Qxd2 {[%emt 0:00:02]} 16. Rxd2 {[%emt 0:00:02]} Bxd5 {[%emt 0:00:07]} 17. Rxd5 {[%emt 0:00:02]} Ke7 {[%emt 0:00:14]} 18. Red1 {[%emt 0:00:06]} Ke6 {[%emt 0:00:02]} 19. Nd2 {[%emt 0:00:12]} Rd7 {[%emt 0:00:46]} 20. Nc4 {[%emt 0:00:01]} Rhd8 {[%emt 0:00:02]} 21. g3 {[%emt 0:00:11]} g6 {[%emt 0:01:58]} 22. f4 {[%emt 0:01:05]} Bg7 {[%emt 0:00:01]} 23. a4 {[%emt 0:01:10]} f5 {[%emt 0:00:25]} 24. exf5+ {[%emt 0:00:01]} gxf5 {[%emt 0:00:01]} 25. c3 {[%emt 0:00:40]} h5 {[%emt 0:01:05]} 26. Kc2 {[%emt 0:00:12]} h4 {[%emt 0:00:18]} 27. b4 {[%emt 0:00:19]} exf4 {[%emt 0:01:33]} 28. gxf4 {[%emt 0:00:03]} Rc7 {[%emt 0:00:38]} 29. Kb3 {[%emt 0:00:08]} Rdc8 {[%emt 0:00:36]} 30. Rxd6+ {[%emt 0:00:50]} Ke7 {[%emt 0:00:02]} 31. Ne5 {[%emt 0:06:52]} Bxe5 {[%emt 0:00:13]} 32. fxe5 {[%emt 0:00:02]} Rxc3+ {[%emt 0:00:00]} 33. Kb2 {[%emt 0:00:02]} Rc2+ {[%emt 0:00:02]} 34. Kb1 {[%emt 0:00:00]} Rxh2 {[%emt 0:00:10]} 35. Rg1 {[%emt 0:01:10]} Re2 {[%emt 0:03:43]} 36. Rg7+ {[%emt 0:00:27]} Kf8 {[%emt 0:00:02]} 37. Rxb7 {[%emt 0:00:56]} Re1+ {[%emt 0:00:03]} 38. Kb2 {[%emt 0:00:01]} Re2+ {[%emt 0:00:01]} 39. Kb1 {[%emt 0:00:01]} Re1+ {[%emt 0:00:01]} 1/2-1/2

[Event "RUS-ch Men Rapid 2019"]
[Site "Sochi"]
[Date "2019.10.16"]
[Round "9.15"]
[White "Triapishko, Alexandr"]
[Black "Korchmar, Vasiliy"]
[Result "1/2-1/2"]
[ECO "D78"]
[WhiteElo "2514"]
[BlackElo "2434"]
[Annotator "ChessBase"]
[PlyCount "44"]
[EventDate "2019.10.15"]
[EventType "swiss"]
[EventCountry "RUS"]
[SourceTitle "playchess.com"]
[Source "ChessBase"]
[SourceQuality "1"]
[TimeControl "900+10"]

1. Nf3 {[%emt 0:01:48]} d5 {[%emt 0:00:02]} 2. g3 {[%emt 0:00:08]} g6 {[%emt 0:00:03]} 3. Bg2 {[%emt 0:00:08]} Bg7 {[%emt 0:00:02]} 4. d4 {[%emt 0:00:01]} Nf6 {[%emt 0:00:02]} 5. O-O {[%emt 0:00:03]} O-O {[%emt 0:00:01]} 6. c4 {[%emt 0:00:30]} c6 {[%emt 0:00:02]} 7. a4 {[%emt 0:00:03]} Bf5 {[%emt 0:00:51]} 8. Ne5 {[%emt 0:02:29]} Nbd7 {[%emt 0:01:03]} 9. cxd5 {[%emt 0:01:20]} cxd5 {[%emt 0:00:40]} 10. Nc3 {[%emt 0:01:06]} Be6 {[%emt 0:07:59]} 11. Nd3 {[%emt 0:02:11]} Bf5 {[%emt 0:01:41]} 12. Nxd5 {[%emt 0:02:59]} Nxd5 {[%emt 0:00:01]} 13. Bxd5 {[%emt 0:00:02]} Bxd4 {[%emt 0:00:02]} 14. Bxb7 {[%emt 0:01:46]} Rb8 {[%emt 0:00:01]} 15. Bg2 {[%emt 0:00:07]} Bxd3 {[%emt 0:00:29]} 16. Qxd3 {[%emt 0:00:57]} Nc5 {[%emt 0:00:01]} 17. Qc2 {[%emt 0:00:48]} Nb3 {[%emt 0:00:02]} 18. Rb1 {[%emt 0:00:11]} Nxc1 {[%emt 0:00:24]} 19. Rfxc1 {[%emt 0:00:19]} Qb6 {[%emt 0:00:01]} 20. e3 {[%emt 0:00:28]} Bxb2 {[%emt 0:00:05]} 21. Rd1 {[%emt 0:00:11]} Qf6 {[%emt 0:00:02]} 22. Qc6 {[%emt 0:00:31]} Qxc6 {[%emt 0:00:16]} 1/2-1/2

[Event "RUS-ch Men Rapid 2019"]
[Site "Sochi"]
[Date "2019.10.16"]
[Round "9.16"]
[White "Bryakin, Mikhail"]
[Black "Yudin, Sergei"]
[Result "0-1"]
[ECO "D02"]
[WhiteElo "2440"]
[BlackElo "2497"]
[Annotator "ChessBase"]
[PlyCount "82"]
[EventDate "2019.10.15"]
[EventType "swiss"]
[EventCountry "RUS"]
[SourceTitle "playchess.com"]
[Source "ChessBase"]
[SourceQuality "1"]
[TimeControl "900+10"]

1. d4 {[%emt 0:00:00]} d5 {[%emt 0:00:00]} 2. Nf3 {[%emt 0:00:00]} e6 {[%emt 0:00:00]} 3. c4 {[%emt 0:00:00]} c6 {[%emt 0:00:00]} 4. Qc2 {[%emt 0:00:14]} dxc4 {[%emt 0:00:00]} 5. Qxc4 {[%emt 0:00:05]} Nf6 {[%emt 0:00:00]} 6. g3 {[%emt 0:00:21]} b5 {[%emt 0:00:00]} 7. Qc2 {[%emt 0:00:12]} Bb7 {[%emt 0:00:02]} 8. Bg2 {[%emt 0:00:06]} Nbd7 {[%emt 0:00:01]} 9. a4 {[%emt 0:00:05]} b4 {[%emt 0:00:36]} 10. a5 {[%emt 0:01:05]} c5 {[%emt 0:00:05]} 11. O-O {[%emt 0:00:13]} Rc8 {[%emt 0:00:03]} 12. Qd1 {[%emt 0:00:39]} c4 {[%emt 0:00:26]} 13. Bd2 {[%emt 0:00:41]} Be4 {[%emt 0:01:40]} 14. Ra4 {[%emt 0:00:52]} Nd5 {[%emt 0:00:32]} 15. Qc1 {[%emt 0:01:12]} Be7 {[%emt 0:00:29]} 16. Ne1 {[%emt 0:00:16]} Bxg2 {[%emt 0:00:18]} 17. Nxg2 {[%emt 0:00:02]} N7f6 {[%emt 0:00:02]} 18. f3 {[%emt 0:01:15]} Qd7 {[%emt 0:02:49]} 19. Ra2 {[%emt 0:00:55]} c3 {[%emt 0:01:06]} 20. bxc3 {[%emt 0:00:17]} bxc3 {[%emt 0:00:02]} 21. Rc2 {[%emt 0:00:35]} O-O {[%emt 0:00:06]} 22. Bxc3 {[%emt 0:02:07]} Nxc3 {[%emt 0:00:04]} 23. Rxc3 {[%emt 0:00:06]} Qxd4+ {[%emt 0:00:25]} 24. e3 {[%emt 0:00:02]} Qd7 {[%emt 0:00:07]} 25. Rd1 {[%emt 0:00:15]} Nd5 {[%emt 0:00:44]} 26. Rc4 {[%emt 0:02:10]} Qb7 {[%emt 0:00:31]} 27. e4 {[%emt 0:00:42]} Nb4 {[%emt 0:00:35]} 28. Ne3 {[%emt 0:00:21]} Nc6 {[%emt 0:00:34]} 29. Qc3 {[%emt 0:01:01]} Bf6 {[%emt 0:01:48]} 30. Qa3 {[%emt 0:00:22]} Rcd8 {[%emt 0:00:42]} 31. Rxd8 {[%emt 0:02:59]} Rxd8 {[%emt 0:00:02]} 32. Nc3 {[%emt 0:00:33]} Ne5 {[%emt 0:00:19]} 33. Rb4 {[%emt 0:00:05]} Qc8 {[%emt 0:01:29]} 34. f4 {[%emt 0:00:29]} Nf3+ {[%emt 0:01:42]} 35. Kf2 {[%emt 0:00:01]} Nd2 {[%emt 0:00:22]} 36. e5 {[%emt 0:00:31]} Be7 {[%emt 0:00:02]} 37. Ke2 {[%emt 0:00:03]} Qa8 {[%emt 0:00:37]} 38. Ncd5 {[%emt 0:00:16]} exd5 {[%emt 0:00:13]} 39. Kxd2 {[%emt 0:00:05]} d4 {[%emt 0:00:10]} 40. Nc2 {[%emt 0:00:04]} Qg2+ {[%emt 0:00:07]} 41. Kc1 {[%emt 0:00:17]} Rc8 {[%emt 0:00:26]} 0-1